{"text_format":"3","workbook":"xlsx","n_sheets":14,"sheets":["conseils","synthèse","jan","fév","mar","avr","mai","juin","juil","aoû","sep","oct","nov","déc"],"not_rendered":{"charts":1,"defined_names":27},"read":"whole","date_system":"1900"}

{"sheet":"conseils","index":0,"n_rows":18,"n_cols":1,"rows_kept":18}
["CONSEILS POUR LE MODÈLE"]
["Existe-t-il un raccourci pour passer de la feuille de synthèse Évolution des dépenses à celle du détail des dépenses mensuelles ?"]
["Pour accéder rapidement aux dépenses d’un mois particulier, cliquez sur le lien de navigation associé au-dessus du graphique, par exemple Jan dans la cellule B2. Pour revenir à la feuille de calcul Évolution des dépenses, cliquez sur le lien de navigation Synthèse dans la cellule D1. "]
["Pour revenir à cette feuille de calcul de conseils, dans la feuille de synthèse, sélectionnez N2. À partir des feuilles de calcul de chaque mois, sélectionnez E1."]
["Comment ajouter un nouveau type de dépense à la synthèse des dépenses ou de nouvelles dépenses mensuelles ?"]
["La synthèse des dépenses sous le graphique et les détails des dépenses par mois sont des tableaux Excel. Pour ajouter des lignes à un tableau Excel, procédez de l’une des manière suivantes :"]
[{"$f":"ROW(A1)&\". Si le tableau ne comporte pas de ligne de total, commencez à taper en dessous. Il s’agrandit automatiquement lorsque vous appuyez sur la touche Entrée ou Tab.\"","v":"1. Si le tableau ne comporte pas de ligne de total, commencez à taper en dessous. Il s’agrandit automatiquement lorsque vous appuyez sur la touche Entrée ou Tab."}]
[{"$f":"ROW(A2)&\". Placez le pointeur de cellule dans la dernière cellule au-dessus de la ligne de total, par exemple le total de la dernière dépense, puis appuyez sur la touche Tab.\"","v":"2. Placez le pointeur de cellule dans la dernière cellule au-dessus de la ligne de total, par exemple le total de la dernière dépense, puis appuyez sur la touche Tab."}]
[{"$f":"ROW(A3)&\". Cliquez avec le bouton droit dans le tableau. Dans le menu contextuel, pointez sur Insérer, puis cliquez sur Lignes de tableau au-dessus ou Lignes de tableau en dessous.\"","v":"3. Cliquez avec le bouton droit dans le tableau. Dans le menu contextuel, pointez sur Insérer, puis cliquez sur Lignes de tableau au-dessus ou Lignes de tableau en dessous."}]
[{"$f":"ROW(A4)&\". Dans le coin inférieur droit du tableau, placez votre souris sur la poignée de redimensionnement et faites glisser pour augmenter le nombre de lignes disponibles.\"","v":"4. Dans le coin inférieur droit du tableau, placez votre souris sur la poignée de redimensionnement et faites glisser pour augmenter le nombre de lignes disponibles."}]
["Entrez la dépense dans la feuille de calcul Synthèse, dans le tableau SynthèseDépenses et dans la colonne Dépenses."]
["Ajoutez le montant de la dépense pour chaque type de dépense dans la feuille de calcul du mois concerné."]
["Par exemple : « Dépenses 1 » concerne les mois de janvier à juin et décembre. "]
[{"$f":"ROW(A1)&\". Le tableau Dépenses 1 est entré dans la feuille de calcul de synthèse sous Dépenses dans le tableau SynthèseDépenses (titre du type de dépense)\"","v":"1. Le tableau Dépenses 1 est entré dans la feuille de calcul de synthèse sous Dépenses dans le tableau SynthèseDépenses (titre du type de dépense)"}]
[{"$f":"ROW(A2)&\". Pour chaque mois pendant lequel la dépense a lieu, entrez le montant de la dépense dans la feuille de calcul correspondante.\"","v":"2. Pour chaque mois pendant lequel la dépense a lieu, entrez le montant de la dépense dans la feuille de calcul correspondante."}]
[{"$f":"ROW(A3)&\". Le type de dépense de la feuille de calcul SynthèseDépenses crée une liste de catégories pour la colonne Catégorie présente dans chaque feuille de mois.\"","v":"3. Le type de dépense de la feuille de calcul SynthèseDépenses crée une liste de catégories pour la colonne Catégorie présente dans chaque feuille de mois."}]
[{"$f":"ROW(A4)&\". La liste de catégories de la colonne Catégorie permet de sélectionner le type de dépense correspondant pour le montant entré.\"","v":"4. La liste de catégories de la colonne Catégorie permet de sélectionner le type de dépense correspondant pour le montant entré."}]
[{"$f":"ROW(A5)&\". Pour ajouter de nouvelles dépenses dans un mois quelconque, ajoutez une ligne au tableau SynthèseDépenses dans la feuille de calcul de synthèse, puis entrez les détails de dépense correspondants dans la feuille de calcul du mois concerné.\"","v":"5. Pour ajouter de nouvelles dépenses dans un mois quelconque, ajoutez une ligne au tableau SynthèseDépenses dans la feuille de calcul de synthèse, puis entrez les détails de dépense correspondants dans la feuille de calcul du mois concerné."}]

{"sheet":"synthèse","index":1,"n_rows":10,"n_cols":15,"rows_kept":10}
["ÉVOLUTION DES DÉPENSES"]
[null,"Jan","Fév","Mar","Avr","Mai","Juin","Juil","Aoû","Sep","Oct","Nov","Déc","Conseils"]
[]
["Dépenses","Jan","Fév","Mar","Avr","Mai","Juin","Juil","Aoû","Sep","Oct","Nov","Déc","Total","Évolution"]
["Dépenses 1",{"$f":"SUMIFS(DépJan[Montant],DépJan[Catégorie],SynthèseDépenses[Dépenses])","v":{"v":33,"d":"33.00"}},{"$f":"SUMIFS(DépFév[Montant],DépFév[Catégorie],SynthèseDépenses[Dépenses])","v":{"v":375,"d":"375.00"}},{"$f":"SUMIFS(DépMar[Montant],DépMar[Catégorie],SynthèseDépenses[Dépenses])","v":{"v":33,"d":"33.00"}},{"$f":"SUMIFS(DépAvr[Montant],DépAvr[Catégorie],SynthèseDépenses[Dépenses])","v":{"v":45,"d":"45.00"}},{"$f":"SUMIFS(DépMai[Montant],DépMai[Catégorie],SynthèseDépenses[Dépenses])","v":{"v":375,"d":"375.00"}},{"$f":"SUMIFS(DépJuin[Montant],DépJuin[Catégorie],SynthèseDépenses[Dépenses])","v":{"v":201,"d":"201.00"}},{"$f":"SUMIFS(DépJuil[Montant],DépJuil[Catégorie],SynthèseDépenses[Dépenses])","v":{"v":0,"d":"0.00"}},{"$f":"SUMIFS(DépAoû[Montant],DépAoû[Catégorie],SynthèseDépenses[Dépenses])","v":{"v":0,"d":"0.00"}},{"$f":"SUMIFS(DépSep[Montant],DépSep[Catégorie],SynthèseDépenses[Dépenses])","v":{"v":0,"d":"0.00"}},{"$f":"SUMIFS(DépOct[Montant],DépOct[Catégorie],SynthèseDépenses[Dépenses])","v":{"v":0,"d":"0.00"}},{"$f":"SUMIFS(DépNov[Montant],DépNov[Catégorie],SynthèseDépenses[Dépenses])","v":{"v":0,"d":"0.00"}},{"$f":"SUMIFS(DépDéc[Montant],DépDéc[Catégorie],SynthèseDépenses[Dépenses])","v":{"v":201,"d":"201.00"}},{"$f":"SUM(SynthèseDépenses[[#This Row],[Jan]:[Déc]])","v":{"v":1263,"d":"1,263.00"}}]
["Dépenses 2",{"$f":"SUMIFS(DépJan[Montant],DépJan[Catégorie],SynthèseDépenses[Dépenses])","v":{"v":238,"d":"238.00"}},{"$f":"SUMIFS(DépFév[Montant],DépFév[Catégorie],SynthèseDépenses[Dépenses])","v":{"v":238,"d":"238.00"}},{"$f":"SUMIFS(DépMar[Montant],DépMar[Catégorie],SynthèseDépenses[Dépenses])","v":{"v":238,"d":"238.00"}},{"$f":"SUMIFS(DépAvr[Montant],DépAvr[Catégorie],SynthèseDépenses[Dépenses])","v":{"v":123,"d":"123.00"}},{"$f":"SUMIFS(DépMai[Montant],DépMai[Catégorie],SynthèseDépenses[Dépenses])","v":{"v":111,"d":"111.00"}},{"$f":"SUMIFS(DépJuin[Montant],DépJuin[Catégorie],SynthèseDépenses[Dépenses])","v":{"v":98,"d":"98.00"}},{"$f":"SUMIFS(DépJuil[Montant],DépJuil[Catégorie],SynthèseDépenses[Dépenses])","v":{"v":0,"d":"0.00"}},{"$f":"SUMIFS(DépAoû[Montant],DépAoû[Catégorie],SynthèseDépenses[Dépenses])","v":{"v":0,"d":"0.00"}},{"$f":"SUMIFS(DépSep[Montant],DépSep[Catégorie],SynthèseDépenses[Dépenses])","v":{"v":0,"d":"0.00"}},{"$f":"SUMIFS(DépOct[Montant],DépOct[Catégorie],SynthèseDépenses[Dépenses])","v":{"v":0,"d":"0.00"}},{"$f":"SUMIFS(DépNov[Montant],DépNov[Catégorie],SynthèseDépenses[Dépenses])","v":{"v":0,"d":"0.00"}},{"$f":"SUMIFS(DépDéc[Montant],DépDéc[Catégorie],SynthèseDépenses[Dépenses])","v":{"v":440,"d":"440.00"}},{"$f":"SUM(SynthèseDépenses[[#This Row],[Jan]:[Déc]])","v":{"v":1486,"d":"1,486.00"}}]
["Dépenses 3",{"$f":"SUMIFS(DépJan[Montant],DépJan[Catégorie],SynthèseDépenses[Dépenses])","v":{"v":110,"d":"110.00"}},{"$f":"SUMIFS(DépFév[Montant],DépFév[Catégorie],SynthèseDépenses[Dépenses])","v":{"v":110,"d":"110.00"}},{"$f":"SUMIFS(DépMar[Montant],DépMar[Catégorie],SynthèseDépenses[Dépenses])","v":{"v":110,"d":"110.00"}},{"$f":"SUMIFS(DépAvr[Montant],DépAvr[Catégorie],SynthèseDépenses[Dépenses])","v":{"v":125,"d":"125.00"}},{"$f":"SUMIFS(DépMai[Montant],DépMai[Catégorie],SynthèseDépenses[Dépenses])","v":{"v":333,"d":"333.00"}},{"$f":"SUMIFS(DépJuin[Montant],DépJuin[Catégorie],SynthèseDépenses[Dépenses])","v":{"v":122,"d":"122.00"}},{"$f":"SUMIFS(DépJuil[Montant],DépJuil[Catégorie],SynthèseDépenses[Dépenses])","v":{"v":0,"d":"0.00"}},{"$f":"SUMIFS(DépAoû[Montant],DépAoû[Catégorie],SynthèseDépenses[Dépenses])","v":{"v":0,"d":"0.00"}},{"$f":"SUMIFS(DépSep[Montant],DépSep[Catégorie],SynthèseDépenses[Dépenses])","v":{"v":0,"d":"0.00"}},{"$f":"SUMIFS(DépOct[Montant],DépOct[Catégorie],SynthèseDépenses[Dépenses])","v":{"v":0,"d":"0.00"}},{"$f":"SUMIFS(DépNov[Montant],DépNov[Catégorie],SynthèseDépenses[Dépenses])","v":{"v":0,"d":"0.00"}},{"$f":"SUMIFS(DépDéc[Montant],DépDéc[Catégorie],SynthèseDépenses[Dépenses])","v":{"v":122,"d":"122.00"}},{"$f":"SUM(SynthèseDépenses[[#This Row],[Jan]:[Déc]])","v":{"v":1032,"d":"1,032.00"}}]
["Dépenses 4",{"$f":"SUMIFS(DépJan[Montant],DépJan[Catégorie],SynthèseDépenses[Dépenses])","v":{"v":426,"d":"426.00"}},{"$f":"SUMIFS(DépFév[Montant],DépFév[Catégorie],SynthèseDépenses[Dépenses])","v":{"v":84,"d":"84.00"}},{"$f":"SUMIFS(DépMar[Montant],DépMar[Catégorie],SynthèseDépenses[Dépenses])","v":{"v":84,"d":"84.00"}},{"$f":"SUMIFS(DépAvr[Montant],DépAvr[Catégorie],SynthèseDépenses[Dépenses])","v":{"v":426,"d":"426.00"}},{"$f":"SUMIFS(DépMai[Montant],DépMai[Catégorie],SynthèseDépenses[Dépenses])","v":{"v":125,"d":"125.00"}},{"$f":"SUMIFS(DépJuin[Montant],DépJuin[Catégorie],SynthèseDépenses[Dépenses])","v":{"v":187,"d":"187.00"}},{"$f":"SUMIFS(DépJuil[Montant],DépJuil[Catégorie],SynthèseDépenses[Dépenses])","v":{"v":0,"d":"0.00"}},{"$f":"SUMIFS(DépAoû[Montant],DépAoû[Catégorie],SynthèseDépenses[Dépenses])","v":{"v":0,"d":"0.00"}},{"$f":"SUMIFS(DépSep[Montant],DépSep[Catégorie],SynthèseDépenses[Dépenses])","v":{"v":0,"d":"0.00"}},{"$f":"SUMIFS(DépOct[Montant],DépOct[Catégorie],SynthèseDépenses[Dépenses])","v":{"v":0,"d":"0.00"}},{"$f":"SUMIFS(DépNov[Montant],DépNov[Catégorie],SynthèseDépenses[Dépenses])","v":{"v":0,"d":"0.00"}},{"$f":"SUMIFS(DépDéc[Montant],DépDéc[Catégorie],SynthèseDépenses[Dépenses])","v":{"v":187,"d":"187.00"}},{"$f":"SUM(SynthèseDépenses[[#This Row],[Jan]:[Déc]])","v":{"v":1519,"d":"1,519.00"}}]
["Dépenses 5",{"$f":"SUMIFS(DépJan[Montant],DépJan[Catégorie],SynthèseDépenses[Dépenses])","v":{"v":54,"d":"54.00"}},{"$f":"SUMIFS(DépFév[Montant],DépFév[Catégorie],SynthèseDépenses[Dépenses])","v":{"v":54,"d":"54.00"}},{"$f":"SUMIFS(DépMar[Montant],DépMar[Catégorie],SynthèseDépenses[Dépenses])","v":{"v":109,"d":"109.00"}},{"$f":"SUMIFS(DépAvr[Montant],DépAvr[Catégorie],SynthèseDépenses[Dépenses])","v":{"v":98,"d":"98.00"}},{"$f":"SUMIFS(DépMai[Montant],DépMai[Catégorie],SynthèseDépenses[Dépenses])","v":{"v":33,"d":"33.00"}},{"$f":"SUMIFS(DépJuin[Montant],DépJuin[Catégorie],SynthèseDépenses[Dépenses])","v":{"v":441,"d":"441.00"}},{"$f":"SUMIFS(DépJuil[Montant],DépJuil[Catégorie],SynthèseDépenses[Dépenses])","v":{"v":0,"d":"0.00"}},{"$f":"SUMIFS(DépAoû[Montant],DépAoû[Catégorie],SynthèseDépenses[Dépenses])","v":{"v":0,"d":"0.00"}},{"$f":"SUMIFS(DépSep[Montant],DépSep[Catégorie],SynthèseDépenses[Dépenses])","v":{"v":0,"d":"0.00"}},{"$f":"SUMIFS(DépOct[Montant],DépOct[Catégorie],SynthèseDépenses[Dépenses])","v":{"v":0,"d":"0.00"}},{"$f":"SUMIFS(DépNov[Montant],DépNov[Catégorie],SynthèseDépenses[Dépenses])","v":{"v":0,"d":"0.00"}},{"$f":"SUMIFS(DépDéc[Montant],DépDéc[Catégorie],SynthèseDépenses[Dépenses])","v":{"v":99,"d":"99.00"}},{"$f":"SUM(SynthèseDépenses[[#This Row],[Jan]:[Déc]])","v":{"v":888,"d":"888.00"}}]
["Total",{"$f":"SUBTOTAL(109,SynthèseDépenses[Jan])","v":{"v":861,"d":"861.00"}},{"$f":"SUBTOTAL(109,SynthèseDépenses[Fév])","v":{"v":861,"d":"861.00"}},{"$f":"SUBTOTAL(109,SynthèseDépenses[Mar])","v":{"v":574,"d":"574.00"}},{"$f":"SUBTOTAL(109,SynthèseDépenses[Avr])","v":{"v":817,"d":"817.00"}},{"$f":"SUBTOTAL(109,SynthèseDépenses[Mai])","v":{"v":977,"d":"977.00"}},{"$f":"SUBTOTAL(109,SynthèseDépenses[Juin])","v":{"v":1049,"d":"1,049.00"}},{"$f":"SUBTOTAL(109,SynthèseDépenses[Juil])","v":{"v":0,"d":"0.00"}},{"$f":"SUBTOTAL(109,SynthèseDépenses[Aoû])","v":{"v":0,"d":"0.00"}},{"$f":"SUBTOTAL(109,SynthèseDépenses[Sep])","v":{"v":0,"d":"0.00"}},{"$f":"SUBTOTAL(109,SynthèseDépenses[Oct])","v":{"v":0,"d":"0.00"}},{"$f":"SUBTOTAL(109,SynthèseDépenses[Nov])","v":{"v":0,"d":"0.00"}},{"$f":"SUBTOTAL(109,SynthèseDépenses[Déc])","v":{"v":1049,"d":"1,049.00"}},{"$f":"SUBTOTAL(109,SynthèseDépenses[Total])","v":{"v":6188,"d":"6,188.00"}}]

{"sheet":"jan","index":2,"n_rows":9,"n_cols":5,"rows_kept":9,"merged":[[0,0,0,2]]}
["DÉPENSES JANVIER",null,null,"Synthèse","Conseils"]
["Date","N° bon de commande","Montant","Catégorie","Description"]
[{"$f":"DATE(YEAR(TODAY()),1,4)","v":"2016-01-04"},"A-12345",{"v":33,"d":"33.00"},"Dépenses 1","Fournitures"]
[{"$f":"DATE(YEAR(TODAY()),1,5)","v":"2016-01-05"},"A-12346",{"v":238,"d":"238.00"},"Dépenses 2"]
[null,null,{"v":342,"d":"342.00"},"Dépenses 4"]
[null,null,{"v":110,"d":"110.00"},"Dépenses 3"]
[null,null,{"v":84,"d":"84.00"},"Dépenses 4"]
[null,null,{"v":54,"d":"54.00"},"Dépenses 5"]
["Total",null,{"$f":"SUBTOTAL(109,DépJan[Montant])","v":{"v":861,"d":"861.00"}}]

{"sheet":"fév","index":3,"n_rows":9,"n_cols":5,"rows_kept":9,"merged":[[0,0,0,2]]}
["DÉPENSES FÉVRIER",null,null,"Synthèse","Conseils"]
["Date","N° bon de commande","Montant","Catégorie","Description"]
[{"$f":"DATE(YEAR(TODAY()),2,3)","v":"2016-02-03"},"A-12345",{"v":33,"d":"33.00"},"Dépenses 1","Fournitures"]
[{"$f":"DATE(YEAR(TODAY()),2,4)","v":"2016-02-04"},"A-12346",{"v":238,"d":"238.00"},"Dépenses 2"]
[null,null,{"v":342,"d":"342.00"},"Dépenses 1"]
[null,null,{"v":110,"d":"110.00"},"Dépenses 3"]
[null,null,{"v":84,"d":"84.00"},"Dépenses 4"]
[null,null,{"v":54,"d":"54.00"},"Dépenses 5"]
["Total",null,{"$f":"SUBTOTAL(109,DépFév[Montant])","v":{"v":861,"d":"861.00"}}]

{"sheet":"mar","index":4,"n_rows":9,"n_cols":5,"rows_kept":9,"merged":[[0,0,0,2]]}
["DÉPENSES MARS",null,null,"Synthèse","Conseils"]
["Date","N° bon de commande","Montant","Catégorie","Description"]
[{"$f":"DATE(YEAR(TODAY()),3,5)","v":"2016-03-05"},"A-12345",{"v":33,"d":"33.00"},"Dépenses 1","Fournitures"]
[{"$f":"DATE(YEAR(TODAY()),3,6)","v":"2016-03-06"},"A-12346",{"v":238,"d":"238.00"},"Dépenses 2"]
[null,null,{"v":55,"d":"55.00"},"Dépenses 5"]
[null,null,{"v":110,"d":"110.00"},"Dépenses 3"]
[null,null,{"v":84,"d":"84.00"},"Dépenses 4"]
[null,null,{"v":54,"d":"54.00"},"Dépenses 5"]
["Total",null,{"$f":"SUBTOTAL(109,DépMar[Montant])","v":{"v":574,"d":"574.00"}}]

{"sheet":"avr","index":5,"n_rows":9,"n_cols":5,"rows_kept":9,"merged":[[0,0,0,2]]}
["DÉPENSES AVRIL",null,null,"Synthèse","Conseils"]
["Date","N° bon de commande","Montant","Catégorie","Description"]
[{"$f":"DATE(YEAR(TODAY()),4,4)","v":"2016-04-04"},"A-12345",{"v":45,"d":"45.00"},"Dépenses 1","Fournitures"]
[{"$f":"DATE(YEAR(TODAY()),4,8)","v":"2016-04-08"},"A-12346",{"v":123,"d":"123.00"},"Dépenses 2"]
[null,null,{"v":342,"d":"342.00"},"Dépenses 4"]
[null,null,{"v":125,"d":"125.00"},"Dépenses 3"]
[null,null,{"v":84,"d":"84.00"},"Dépenses 4"]
[null,null,{"v":98,"d":"98.00"},"Dépenses 5"]
["Total",null,{"$f":"SUBTOTAL(109,DépAvr[Montant])","v":{"v":817,"d":"817.00"}}]

{"sheet":"mai","index":6,"n_rows":9,"n_cols":5,"rows_kept":9,"merged":[[0,0,0,2]]}
["DÉPENSES MAI",null,null,"Synthèse","Conseils"]
["Date","N° bon de commande","Montant","Catégorie","Description"]
[{"$f":"DATE(YEAR(TODAY()),5,3)","v":"2016-05-03"},"A-12345",{"v":33,"d":"33.00"},"Dépenses 1","Fournitures"]
[{"$f":"DATE(YEAR(TODAY()),5,8)","v":"2016-05-08"},"A-12346",{"v":111,"d":"111.00"},"Dépenses 2"]
[null,null,{"v":342,"d":"342.00"},"Dépenses 1"]
[null,null,{"v":333,"d":"333.00"},"Dépenses 3"]
[null,null,{"v":125,"d":"125.00"},"Dépenses 4"]
[null,null,{"v":33,"d":"33.00"},"Dépenses 5"]
["Total",null,{"$f":"SUBTOTAL(109,DépMai[Montant])","v":{"v":977,"d":"977.00"}}]

{"sheet":"juin","index":7,"n_rows":9,"n_cols":5,"rows_kept":9,"merged":[[0,0,0,2]]}
["DÉPENSES JUIN",null,null,"Synthèse","Conseils"]
["Date","N° bon de commande","Montant","Catégorie","Description"]
[{"$f":"DATE(YEAR(TODAY()),6,7)","v":"2016-06-07"},"A-12345",{"v":201,"d":"201.00"},"Dépenses 1","Fournitures"]
[{"$f":"DATE(YEAR(TODAY()),6,8)","v":"2016-06-08"},"A-12346",{"v":98,"d":"98.00"},"Dépenses 2"]
[null,null,{"v":342,"d":"342.00"},"Dépenses 5"]
[null,null,{"v":122,"d":"122.00"},"Dépenses 3"]
[null,null,{"v":187,"d":"187.00"},"Dépenses 4"]
[null,null,{"v":99,"d":"99.00"},"Dépenses 5"]
["Total",null,{"$f":"SUBTOTAL(109,DépJuin[Montant])","v":{"v":1049,"d":"1,049.00"}}]

{"sheet":"juil","index":8,"n_rows":9,"n_cols":5,"rows_kept":9,"merged":[[0,0,0,2]]}
["DÉPENSES JUILLET",null,null,"Synthèse","Conseils"]
["Date","N° bon de commande","Montant","Catégorie","Description"]
[{"$f":"DATE(YEAR(TODAY()),7,9)","v":"2016-07-09"},"A-12345",null,"Dépenses 1","Fournitures"]
[{"$f":"DATE(YEAR(TODAY()),7,14)","v":"2016-07-14"},"A-12346",null,"Dépenses 2"]
[{"$nulls":3},"Dépenses 2"]
[{"$nulls":3},"Dépenses 3"]
[{"$nulls":3},"Dépenses 4"]
[{"$nulls":3},"Dépenses 5"]
["Total",null,{"$f":"SUBTOTAL(109,DépJuil[Montant])","v":{"v":0,"d":"0.00"}}]

{"sheet":"aoû","index":9,"n_rows":9,"n_cols":5,"rows_kept":9,"merged":[[0,0,0,2]]}
["DÉPENSES AOÛT",null,null,"Synthèse","Conseils"]
["Date","N° bon de commande","Montant","Catégorie","Description"]
[{"$f":"DATE(YEAR(TODAY()),8,8)","v":"2016-08-08"},"A-12345",null,"Dépenses 1","Fournitures"]
[{"$f":"DATE(YEAR(TODAY()),8,9)","v":"2016-08-09"},"A-12346",null,"Dépenses 2"]
[{"$nulls":3},"Dépenses 2"]
[{"$nulls":3},"Dépenses 3"]
[{"$nulls":3},"Dépenses 4"]
[{"$nulls":3},"Dépenses 5"]
["Total",null,{"$f":"SUBTOTAL(109,DépAoû[Montant])","v":{"v":0,"d":"0.00"}}]

{"sheet":"sep","index":10,"n_rows":9,"n_cols":5,"rows_kept":9,"merged":[[0,0,0,2]]}
["DÉPENSES SEPTEMBRE",null,null,"Synthèse","Conseils"]
["Date","N° bon de commande","Montant","Catégorie","Description"]
[{"$f":"DATE(YEAR(TODAY()),9,9)","v":"2016-09-09"},"A-12345",null,"Dépenses 1","Fournitures"]
[{"$f":"DATE(YEAR(TODAY()),9,15)","v":"2016-09-15"},"A-12346",null,"Dépenses 2"]
[{"$nulls":3},"Dépenses 2"]
[{"$nulls":3},"Dépenses 3"]
[{"$nulls":3},"Dépenses 4"]
[{"$nulls":3},"Dépenses 5"]
["Total",null,{"$f":"SUBTOTAL(109,DépSep[Montant])","v":{"v":0,"d":"0.00"}}]

{"sheet":"oct","index":11,"n_rows":9,"n_cols":5,"rows_kept":9,"merged":[[0,0,0,2]]}
["DÉPENSES OCTOBRE",null,null,"Synthèse","Conseils"]
["Date","N° bon de commande","Montant","Catégorie","Description"]
[{"$f":"DATE(YEAR(TODAY()),10,10)","v":"2016-10-10"},"A-12345",null,"Dépenses 1","Fournitures"]
[{"$f":"DATE(YEAR(TODAY()),10,21)","v":"2016-10-21"},"A-12346",null,"Dépenses 2"]
[{"$nulls":3},"Dépenses 2"]
[{"$nulls":3},"Dépenses 3"]
[{"$nulls":3},"Dépenses 4"]
[{"$nulls":3},"Dépenses 5"]
["Total",null,{"$f":"SUBTOTAL(109,DépOct[Montant])","v":{"v":0,"d":"0.00"}}]

{"sheet":"nov","index":12,"n_rows":9,"n_cols":5,"rows_kept":9,"merged":[[0,0,0,2]]}
["DÉPENSES NOVEMBRE",null,null,"Synthèse","Conseils"]
["Date","N° bon de commande","Montant","Catégorie","Description"]
[{"$f":"DATE(YEAR(TODAY()),11,14)","v":"2016-11-14"},"A-12345",null,"Dépenses 1","Fournitures"]
[{"$f":"DATE(YEAR(TODAY()),11,21)","v":"2016-11-21"},"A-12346",null,"Dépenses 2"]
[{"$nulls":3},"Dépenses 2"]
[{"$nulls":3},"Dépenses 3"]
[{"$nulls":3},"Dépenses 4"]
[{"$nulls":3},"Dépenses 5"]
["Total",null,{"$f":"SUBTOTAL(109,DépNov[Montant])","v":{"v":0,"d":"0.00"}}]

{"sheet":"déc","index":13,"n_rows":9,"n_cols":5,"rows_kept":9,"merged":[[0,0,0,2]]}
["DÉPENSES DÉCEMBRE",null,null,"Synthèse","Conseils"]
["Date","N° bon de commande","Montant","Catégorie","Description"]
[{"$f":"DATE(YEAR(TODAY()),12,2)","v":"2016-12-02"},"A-12345",{"v":201,"d":"201.00"},"Dépenses 1","Fournitures"]
[{"$f":"DATE(YEAR(TODAY()),12,24)","v":"2016-12-24"},"A-12346",{"v":98,"d":"98.00"},"Dépenses 2"]
[null,null,{"v":342,"d":"342.00"},"Dépenses 2"]
[null,null,{"v":122,"d":"122.00"},"Dépenses 3"]
[null,null,{"v":187,"d":"187.00"},"Dépenses 4"]
[null,null,{"v":99,"d":"99.00"},"Dépenses 5"]
["Total",null,{"$f":"SUBTOTAL(109,DépDéc[Montant])","v":{"v":1049,"d":"1,049.00"}}]